bitfinex-derivatives/quotes_SOLF0:USTF0_20230830
["timestamp","ask_amount","ask_price","bid_price","bid_amount"]
[1693356864802,110.56,21.7,21.687,20.2349]
[1693356866201,0.71283704,21.696,21.687,20.2349]
[1693356871819,110.56,21.691,21.677,33.6708]
[1693356873308,110.56,21.691,21.677,19.8408]
[1693356873309,0.7307066,21.686,21.677,19.8408]
[1693356873914,0.7307066,21.686,21.677,33.6708]
[1693356874920,111.2907066,21.686,21.677,19.8408]
[1693356878422,111.2907066,21.686,21.677,33.6708]
[1693356879824,111.2907066,21.686,21.677,19.8408]
[1693356882122,110.56,21.684,21.677,19.8408]
[1693356886124,110.56,21.684,21.675,37.37269372]
[1693356886325,110.56,21.684,21.673,13.83]
[1693356890734,110.56,21.686,21.673,124.39]
[1693356893528,0.7127563,21.682,21.673,124.39]
[1693356896741,0.7127563,21.682,21.677,110.56]
[1693356901641,110.56,21.69,21.677,110.56]
[1693356901843,110.56,21.693,21.68,110.56]
[1693356902043,110.56,21.696,21.683,13.84]
[1693356902346,500.0,21.705,21.673,13.84]
[1693356902551,99.46,21.693,21.685,99.46]
[1693356903433,99.46,21.693,21.687,0.62324263]
[1693356916455,500.0,21.715,21.687,0.62324263]
[1693356916761,99.46,21.702,21.692,99.46]
[1693356918655,99.46,21.699,21.69,13.84]
[1693356919555,99.46,21.7,21.69,99.46]
[1693356923751,99.46,21.703,21.694,99.46]
[1693356925361,99.46,21.703,21.695,13.83]
[1693356930661,99.46,21.705,21.697,99.46]
[1693356932062,99.46,21.704,21.696,99.46]
[1693356934965,99.46,21.704,21.698,0.73494656]
[1693356936166,99.46,21.702,21.698,0.73494656]
[1693356937366,99.46,21.702,21.693,99.52]
[1693356937764,99.46,21.703,21.694,99.46]
[1693356938067,99.46,21.703,21.698,0.66964104]
[1693356941168,99.46,21.706,21.698,0.66964104]
[1693356941369,18.27824258,21.705,21.698,0.66964104]
[1693356941869,18.27824258,21.705,21.697,99.46]
[1693356942272,99.46,21.706,21.699,0.63135783]
[1693356942667,18.27832681,21.705,21.699,0.63135783]
[1693356942966,99.46,21.702,21.699,0.63135783]
[1693356944268,17.50696879,21.705,21.693,99.52]
[1693356944269,99.46,21.7,21.693,0.06]
[1693356945474,99.46,21.695,21.693,0.06]
[1693356946371,99.46,21.698,21.693,0.06]
[1693356947767,99.46,21.698,21.69,99.46]
[1693356952876,99.46,21.695,21.686,99.46]
[1693356956684,99.46,21.691,21.684,57.8797092]
[1693356957276,99.46,21.691,21.684,20.5857]
[1693356958686,99.46,21.691,21.683,99.46]
[1693356958984,99.46,21.687,21.679,99.46]
[1693356960487,99.46,21.684,21.676,99.46]
[1693356962081,99.46,21.682,21.675,13.83]
[1693356962282,99.46,21.685,21.677,99.46]
[1693356962684,99.46,21.683,21.675,13.83]
[1693356964690,99.46,21.686,21.678,99.46]
[1693356969284,99.46,21.686,21.675,13.83]
[1693356969591,99.46,21.689,21.682,13.83]
[1693356971493,0.73046588,21.688,21.683,0.66831909]
[1693356975093,99.46,21.694,21.686,99.46]
[1693356975299,99.46,21.7,21.69,99.46]
[1693356975501,18.24864807,21.699,21.69,99.46]
[1693356976694,0.69438912,21.697,21.692,0.66643135]
[1693356986606,0.69438912,21.697,21.693,110.46]
[1693356991304,0.69438912,21.697,21.695,13.83]
[1693356991505,110.46,21.708,21.695,13.83]
[1693356991803,18.23481858,21.707,21.695,13.83]
[1693356992012,18.23481858,21.707,21.696,110.46]
[1693356992310,18.23481858,21.706,21.696,110.46]
[1693356992503,18.23481858,21.705,21.696,110.46]
[1693356992702,18.23481858,21.704,21.696,110.46]
[1693356993009,18.95195166,21.703,21.699,0.7034317]
[1693356993203,0.71713308,21.703,21.699,0.7034317]
[1693356995608,110.46,21.7,21.688,0.06]
[1693356996907,18.22418505,21.699,21.688,0.06]
[1693356997107,18.22418505,21.699,21.692,0.65249645]
[1693357000914,0.68222501,21.698,21.692,0.65249645]
[1693357005715,110.46,21.697,21.692,0.65249645]
[1693357007822,18.21516118,21.696,21.692,0.65249645]
[1693357010122,18.21110384,21.695,21.692,0.65249645]
[1693357010421,110.46,21.697,21.692,0.65249645]
[1693357010611,18.21664683,21.696,21.692,0.65249645]
[1693357011716,0.68222501,21.698,21.692,0.65249645]
[1693357012014,18.22292903,21.697,21.692,111.11249645]
[1693357012720,0.68222501,21.698,21.692,111.11249645]
[1693357021632,0.68222501,21.698,21.692,0.65249645]
[1693357028033,0.68222501,21.698,21.695,13.83]
[1693357028938,0.68222501,21.698,21.694,110.46]
[1693357029746,0.68222501,21.698,21.692,0.65249645]
[1693357035643,18.23246,21.697,21.692,0.65249645]
[1693357050453,500.0,21.696,21.663,13.83]
[1693357050652,99.43,21.688,21.679,99.43]
[1693357050846,18.23246,21.687,21.679,99.43]
[1693357051456,18.23246,21.687,21.68,20.6355]
[1693357051652,99.43,21.688,21.68,20.6355]
[1693357052059,99.43,21.69,21.682,99.43]
[1693357052256,18.23075999,21.689,21.682,99.43]
[1693357052659,18.23075999,21.689,21.683,20.0726]
[1693357056256,18.23075999,21.689,21.684,0.75774923]
[1693357056561,0.67390526,21.688,21.684,0.75774923]
[1693357062066,100.10390526,21.688,21.684,0.75774923]
[1693357070067,99.43,21.687,21.684,0.75774923]
[1693357070866,99.43,21.685,21.677,99.43]
[1693357071974,99.43,21.682,21.675,13.84]
[1693357079380,0.7185355,21.681,21.676,0.75341737]
[1693357083779,100.1485355,21.681,21.676,0.75341737]
[1693357085685,0.7185355,21.681,21.677,99.43]
[1693357086086,0.7185355,21.681,21.677,120.5417]
[1693357086480,99.43,21.684,21.677,120.5417]
[1693357094485,99.43,21.688,21.68,99.43]
[1693357098596,99.43,21.688,21.682,13.84]
[1693357102191,99.43,21.689,21.682,113.27]
[1693357103695,99.43,21.693,21.685,99.43]
[1693357104002,99.43,21.697,21.688,99.43]
[1693357104195,18.22535941,21.696,21.688,99.43]
[1693357105403,99.43,21.693,21.685,99.43]
[1693357105700,99.43,21.69,21.682,113.27]
[1693357108198,99.43,21.692,21.685,99.43]
[1693357111999,99.43,21.692,21.684,99.43]
[1693357115106,99.43,21.694,21.686,99.43]
[1693357115309,18.22565175,21.693,21.686,99.43]
[1693357122109,117.65565175,21.693,21.685,99.43]
[1693357122310,18.22565175,21.692,21.685,99.43]
[1693357127807,18.22565175,21.692,21.662,119.94276756]
[1693357127808,99.43,21.687,21.678,99.43]
[1693357128013,18.22565175,21.686,21.678,99.43]
[1693357128502,18.22565175,21.686,21.681,0.06]
[1693357130316,18.19359627,21.685,21.681,0.06]
[1693357130516,99.43,21.687,21.681,0.06]
[1693357130811,18.19353412,21.686,21.681,0.06]
[1693357131612,99.43,21.683,21.675,99.43]
[1693357133314,99.43,21.68,21.672,99.43]
[1693357134420,99.43,21.68,21.673,13.84]
[1693357135015,99.43,21.674,21.663,99.43]
[1693357135215,99.43,21.672,21.663,99.43]
[1693357135610,99.43,21.672,21.664,19.4185]
[1693357136319,11.85,21.671,21.664,19.4185]
[1693357142123,99.43,21.672,21.664,19.4185]
[1693357143822,99.43,21.675,21.666,99.43]
[1693357144626,99.43,21.678,21.67,99.43]
[1693357152128,99.43,21.68,21.673,13.84]
[1693357158925,99.43,21.68,21.673,13.9]
[1693357161930,99.43,21.68,21.673,99.49]
[1693357162133,99.43,21.681,21.673,99.49]
[1693357162325,99.43,21.681,21.673,113.33]
[1693357163529,99.43,21.681,21.673,99.49]
[1693357163931,99.43,21.681,21.673,113.33]
[1693357164536,99.43,21.681,21.673,99.49]
[1693357171941,11.85,21.677,21.673,0.06]
[1693357172140,99.43,21.678,21.673,0.06]
[1693357172534,99.43,21.678,21.673,13.84]
[1693357173542,99.43,21.678,21.673,13.9]
[1693357175847,99.43,21.678,21.673,0.06]
[1693357176850,99.43,21.675,21.672,20.1452]
[1693357177646,99.43,21.675,21.667,99.43]
[1693357178847,99.43,21.672,21.665,99.43]
[1693357181355,11.85,21.673,21.667,99.43]
[1693357185552,11.85,21.673,21.66,51.00474388]
[1693357185752,11.85,21.673,21.667,99.43]
[1693357191463,36.19012459,21.679,21.66,99.43]
[1693357191464,11.86,21.667,21.66,99.43]
[1693357192058,99.43,21.667,21.659,119.9046]
[1693357192256,99.43,21.667,21.659,99.43]
[1693357194761,99.43,21.667,21.659,136.52090908]
[1693357200461,99.43,21.667,21.66,13.85]
[1693357200668,99.43,21.667,21.66,34.4538]
[1693357201663,99.43,21.667,21.66,20.6038]
[1693357201969,99.43,21.669,21.661,99.43]
[1693357202168,99.43,21.665,21.66,20.6038]
[1693357211377,99.43,21.664,21.66,20.6038]
[1693357212077,99.43,21.662,21.66,20.6038]
[1693357212376,99.43,21.661,21.648,99.43]
[1693357212579,99.43,21.653,21.645,99.43]
[1693357213075,99.43,21.656,21.648,99.43]
[1693357213271,99.43,21.65,21.641,99.43]
[1693357213476,99.43,21.653,21.645,99.43]
[1693357214371,99.43,21.652,21.644,99.43]
[1693357218182,537.33087216,21.667,21.638,57.23283109]
[1693357218183,99.43,21.659,21.65,99.43]
[1693357218582,99.43,21.659,21.651,19.8202]
[1693357219178,99.43,21.662,21.653,99.43]
[1693357219584,99.43,21.662,21.654,20.5047]
[1693357220882,99.43,21.664,21.656,99.43]
[1693357222183,500.0,21.677,21.654,20.5047]
[1693357222184,99.43,21.666,21.657,99.43]
[1693357222375,110.79,21.668,21.655,110.79]
[1693357224479,110.79,21.671,21.658,110.79]
[1693357232090,110.79,21.673,21.66,110.79]
[1693357232286,18.19175566,21.672,21.66,110.79]
[1693357232887,110.79,21.673,21.66,110.79]
[1693357233190,18.19172686,21.672,21.66,110.79]
[1693357233696,110.79,21.673,21.66,110.79]
[1693357234191,18.20178041,21.672,21.66,110.79]
[1693357234694,110.79,21.67,21.657,110.79]
[1693357236088,110.79,21.666,21.656,22.65645738]
[1693357236493,110.79,21.666,21.654,131.2947]
[1693357241601,110.79,21.669,21.656,110.79]
[1693357243100,11.86,21.668,21.656,110.79]
[1693357244699,11.86,21.664,21.654,20.5047]
[1693357244902,11.86,21.665,21.654,20.5047]
[1693357245102,11.86,21.665,21.655,13.85]
[1693357245996,11.86,21.662,21.654,20.5047]
[1693357246196,11.86,21.662,21.65,110.79]
[1693357246393,11.86,21.659,21.651,19.5917]
[1693357246597,500.0,21.667,21.644,13.85]
[1693357246598,11.86,21.655,21.644,13.85]
[1693357247298,11.86,21.652,21.646,99.82]
[1693357247597,11.86,21.652,21.645,99.82]
[1693357249604,99.82,21.653,21.645,99.82]
[1693357249806,99.82,21.656,21.648,99.82]
[1693357250305,11.86,21.655,21.648,99.82]
[1693357250904,99.82,21.656,21.648,99.82]
[1693357252401,110.89,21.659,21.647,13.85]
[1693357252606,110.89,21.662,21.649,110.89]
[1693357253003,110.89,21.662,21.651,13.85]
[1693357257310,500.0,21.667,21.639,443.56]
[1693357257311,110.89,21.665,21.653,13.85]
[1693357260310,0.72399722,21.661,21.658,13.85]
[1693357268120,0.72399722,21.661,21.657,14.55335609]
[1693357268321,0.72399722,21.661,21.657,38.15236393]
[1693357270625,0.72399722,21.661,21.657,0.70335609]
[1693357282925,0.72399722,21.661,21.658,13.85]
[1693357288834,0.72399722,21.661,21.657,0.70335609]
[1693357291842,0.72399722,21.661,21.657,14.55335609]
[1693357293539,0.72399722,21.661,21.657,0.70335609]
[1693357297038,11.86,21.659,21.657,0.70335609]
[1693357298746,99.74,21.66,21.657,0.70335609]
[1693357300343,11.86,21.659,21.657,0.70335609]
[1693357301950,99.74,21.659,21.657,0.70335609]
[1693357309451,0.72399722,21.661,21.651,99.8]
[1693357309452,11.87,21.657,21.651,0.06]
[1693357309651,11.87,21.655,21.651,0.06]
[1693357309950,99.74,21.652,21.651,0.06]
[1693357317550,99.74,21.652,21.641,99.74]
[1693357317751,99.74,21.65,21.641,99.74]
[1693357318554,99.74,21.645,21.64,20.3021]
[1693357318752,99.74,21.645,21.64,56.58649519]
[1693357319456,11.87,21.644,21.64,56.58649519]
[1693357319757,99.74,21.642,21.64,56.58649519]
[1693357321055,99.74,21.646,21.64,56.58649519]
[1693357322762,99.74,21.645,21.64,56.58649519]
[1693357323155,18.40709978,21.662,21.64,56.58649519]
[1693357323363,99.74,21.648,21.64,156.32649519]
[1693357323664,99.74,21.651,21.644,13.85]
[1693357324057,18.40709978,21.662,21.64,78.61051855]
[1693357324058,99.74,21.647,21.64,78.61051855]
[1693357326065,99.74,21.65,21.642,99.74]
[1693357326261,11.87,21.649,21.64,78.61051855]
[1693357326467,99.74,21.646,21.64,78.61051855]
[1693357328265,99.74,21.65,21.642,99.74]
[1693357329868,99.74,21.647,21.64,78.61051855]
[1693357331168,11.87,21.646,21.64,78.61051855]
[1693357331971,99.74,21.646,21.64,56.58649519]
[1693357332472,99.74,21.642,21.626,13.85]
[1693357332674,99.74,21.642,21.635,13.85]
[1693357333373,11.88,21.641,21.634,99.74]
[1693357334069,11.88,21.641,21.635,13.86]
[1693357334369,99.74,21.642,21.635,13.86]
[1693357337373,11.88,21.653,21.632,13.86]
[1693357337374,111.03,21.645,21.632,13.86]
[1693357339269,11.88,21.644,21.632,13.86]
[1693357339478,11.88,21.641,21.629,111.03]
[1693357342169,111.03,21.642,21.632,13.86]
[1693357345875,11.88,21.641,21.632,13.86]
[1693357346173,111.03,21.642,21.632,13.86]
[1693357350083,111.03,21.642,21.632,50.24983833]
[1693357351176,11.88,21.641,21.632,50.24983833]
[1693357351984,11.88,21.641,21.632,36.38983833]
[1693357352181,11.88,21.641,21.629,111.03]
[1693357352780,11.88,21.641,21.629,148.53946881]
[1693357354083,111.03,21.642,21.629,148.53946881]
[1693357360593,11.88,21.641,21.629,148.53946881]
[1693357362287,99.94,21.639,21.632,13.86]
[1693357364695,99.94,21.642,21.634,99.94]
[1693357364885,99.94,21.642,21.634,123.17331608]
[1693357369407,11.88,21.641,21.634,123.17331608]
[1693357371306,99.94,21.639,21.634,23.23331608]
[1693357372104,99.94,21.641,21.633,99.94]
[1693357372305,99.94,21.637,21.629,137.44946881]
[1693357372607,99.94,21.637,21.629,99.94]
[1693357375707,11.88,21.635,21.629,99.94]
[1693357375906,99.94,21.63,21.626,37.57486135]
[1693357376097,99.94,21.63,21.623,13.87]
[1693357377811,11.88,21.647,21.619,19.9395]
[1693357377812,99.94,21.632,21.626,13.87]
[1693357379706,11.88,21.631,21.625,99.94]
[1693357379915,99.94,21.629,21.623,13.87]
[1693357381215,11.88,21.628,21.622,99.94]
[1693357381418,99.94,21.627,21.619,99.94]
[1693357382118,99.94,21.633,21.626,13.87]
[1693357385215,99.94,21.636,21.628,99.94]
[1693357385513,99.94,21.642,21.635,99.94]
[1693357387317,20.9324,21.652,21.632,146.1405]
[1693357387318,111.01,21.645,21.632,146.1405]
[1693357388121,11.88,21.644,21.632,146.1405]
[1693357392122,111.01,21.647,21.635,111.01]
[1693357392312,18.20790316,21.646,21.635,111.01]
[1693357396420,111.01,21.647,21.635,111.01]
[1693357396626,18.19832555,21.646,21.635,111.01]
[1693357397327,18.19832555,21.646,21.639,13.86]
[1693357397522,11.88,21.644,21.634,111.01]
[1693357397725,11.88,21.642,21.632,71.81703579]
[1693357397927,111.01,21.644,21.632,57.95703579]
[1693357398123,18.19854855,21.643,21.632,57.95703579]
[1693357399832,111.01,21.647,21.634,111.01]
[1693357400032,18.20014378,21.646,21.639,13.86]
[1693357400221,18.20014378,21.645,21.639,13.86]
[1693357400425,11.88,21.649,21.639,13.86]
[1693357400630,18.20534023,21.648,21.639,13.86]
[1693357401728,122.89,21.647,21.634,133.59061628]
[1693357402030,18.20534023,21.646,21.634,111.01]
[1693357406733,18.20534023,21.646,21.638,0.73883419]
[1693357406933,0.66738702,21.642,21.638,0.73883419]
[1693357414046,0.66738702,21.642,21.638,14.59883419]
[1693357415746,0.66738702,21.642,21.639,13.86]
[1693357417051,18.2554952,21.641,21.639,13.86]
[1693357417852,18.2554952,21.641,21.638,14.59883419]
[1693357418553,18.2554952,21.641,21.639,13.86]
[1693357421055,0.66738702,21.642,21.639,13.86]
[1693357422457,0.66738702,21.642,21.64,99.88]
[1693357424557,99.88,21.648,21.64,99.88]
[1693357424852,99.88,21.653,21.647,13.86]
[1693357425448,99.88,21.653,21.646,99.88]
[1693357427360,11.87,21.655,21.643,110.92]
[1693357427757,110.92,21.653,21.641,110.92]
[1693357428061,110.92,21.655,21.642,110.92]
[1693357428559,110.92,21.655,21.642,110.98]
[1693357429566,110.92,21.652,21.642,0.06]
[1693357429949,11.87,21.657,21.642,0.06]
[1693357429950,11.87,21.647,21.642,0.06]
[1693357431259,11.87,21.647,21.635,110.92]
[1693357431467,11.87,21.647,21.622,13.86]
[1693357431468,110.92,21.644,21.63,110.92]
[1693357431962,110.92,21.641,21.629,36.99584295]
[1693357432263,110.92,21.641,21.628,110.92]
[1693357441967,110.92,21.641,21.628,148.63164509]
[1693357452273,99.97,21.639,21.631,99.97]
[1693357461179,99.97,21.639,21.628,37.71164509]
[1693357461180,99.97,21.642,21.635,99.97]
[1693357461775,99.97,21.64,21.632,99.97]
[1693357467280,99.97,21.646,21.638,99.97]
[1693357469783,99.97,21.649,21.641,99.97]
[1693357472082,99.97,21.647,21.639,99.97]
[1693357472684,99.97,21.644,21.636,99.97]
[1693357473485,99.97,21.644,21.642,0.06]
[1693357475296,11.88,21.643,21.642,0.06]
[1693357475693,99.97,21.643,21.633,99.97]
[1693357475989,99.97,21.64,21.633,99.97]
[1693357476193,11.88,21.639,21.633,99.97]
[1693357477293,11.88,21.639,21.626,13.86]
[1693357477294,11.88,21.646,21.634,111.02]
[1693357477489,11.88,21.646,21.634,124.88]
[1693357477694,11.88,21.646,21.634,111.02]
[1693357481899,111.02,21.643,21.632,33.0144]
[1693357483402,11.88,21.641,21.632,33.0144]
[1693357483602,11.88,21.641,21.632,13.86]
[1693357485108,0.62546627,21.639,21.632,13.86]
[1693357486012,0.62546627,21.639,21.629,111.02]
[1693357487214,11.88,21.637,21.626,19.7946]
[1693357487716,0.62546627,21.639,21.63,13.86]
[1693357487909,111.02,21.641,21.629,13.86]
[1693357488109,11.88,21.644,21.632,111.02]
[1693357488817,11.88,21.644,21.642,0.06]
[1693357489014,111.02,21.647,21.642,0.06]
[1693357489316,11.88,21.65,21.642,0.06]
[1693357489707,11.88,21.65,21.643,13.86]
[1693357489911,11.88,21.653,21.643,13.86]
[1693357491106,11.88,21.656,21.646,13.86]
[1693357491312,11.88,21.659,21.649,13.86]
[1693357492119,11.88,21.662,21.649,111.02]
[1693357493112,111.02,21.656,21.643,146.0773]
[1693357501720,111.02,21.659,21.647,111.02]
[1693357503018,11.88,21.66,21.649,111.02]
[1693357506427,11.88,21.66,21.653,13.85]
[1693357507015,11.87,21.664,21.653,13.85]
[1693357507815,11.87,21.664,21.653,34.2879]
[1693357508121,11.87,21.667,21.656,13.85]
[1693357508320,111.02,21.675,21.661,111.02]
[1693357508522,11.87,21.678,21.666,13.85]
[1693357510730,11.87,21.678,21.665,111.02]
[1693357511226,111.02,21.675,21.662,111.02]
[1693357512027,11.87,21.672,21.66,124.87]
[1693357512623,131.08208061,21.677,21.664,111.02]
[1693357513725,131.08208061,21.677,21.665,13.85]
[1693357514325,20.06208061,21.677,21.667,111.02]
[1693357515531,111.02,21.68,21.667,111.02]
[1693357516830,11.87,21.681,21.67,111.02]
[1693357517725,500.0,21.688,21.674,111.02]
[1693357517726,11.87,21.685,21.674,111.02]
[1693357517928,8.47752806,21.684,21.674,111.02]
[1693357520230,111.02,21.679,21.668,19.9988]
[1693357520535,111.02,21.679,21.669,13.85]
[1693357524132,11.87,21.682,21.67,111.02]
[1693357526431,8.47877636,21.681,21.67,111.02]
[1693357527531,111.02,21.679,21.668,19.9988]
[1693357528437,111.02,21.679,21.666,111.02]
[1693357528938,111.02,21.676,21.663,111.02]
[1693357529639,111.02,21.672,21.659,111.02]
[1693357531541,111.02,21.678,21.665,111.02]
[1693357534445,20.4451,21.681,21.67,111.02]
[1693357535734,130.63633361,21.682,21.67,111.02]
[1693357536438,8.47895699,21.681,21.67,111.02]
[1693357537146,142.48633361,21.682,21.67,111.02]
[1693357537848,8.47900657,21.681,21.67,111.02]
[1693357538349,142.48633361,21.682,21.67,111.02]
[1693357538742,8.4790376,21.681,21.67,111.02]
[1693357539150,142.48633361,21.682,21.67,111.02]
[1693357539445,8.47906186,21.681,21.67,111.02]
[1693357540347,142.48633361,21.682,21.67,111.02]
[1693357540547,8.47911338,21.681,21.67,111.02]
[1693357541347,142.48633361,21.682,21.67,111.02]
[1693357541945,111.02,21.68,21.667,111.02]
[1693357543850,11.85,21.672,21.66,130.9636]
[1693357550147,111.02,21.676,21.663,111.02]
[1693357552856,0.6743826,21.672,21.663,111.02]
[1693357556257,0.6743826,21.672,21.661,111.02]
[1693357556957,111.02,21.671,21.66,19.9436]
[1693357557352,111.02,21.671,21.659,13.84]
[1693357564563,111.02,21.671,21.658,111.02]
[1693357564865,111.02,21.666,21.655,13.84]
[1693357567255,0.68321779,21.663,21.655,13.84]
[1693357568165,0.68321779,21.663,21.654,111.02]
[1693357572067,0.68321779,21.663,21.656,111.02]
[1693357572776,0.68321779,21.663,21.649,20.1834]
[1693357572777,111.02,21.661,21.649,20.1834]
[1693357573275,111.02,21.658,21.645,111.02]
[1693357581982,111.02,21.66,21.647,111.02]
[1693357590385,111.02,21.656,21.643,131.0638]
[1693357591993,111.02,21.654,21.643,20.0438]
[1693357592196,444.08,21.658,21.642,0.06]
[1693357592395,111.02,21.648,21.635,111.02]
[1693357593593,111.02,21.646,21.633,111.02]
[1693357594792,111.02,21.642,21.631,21.1533]
[1693357596885,111.02,21.646,21.633,111.02]
[1693357597091,111.02,21.649,21.636,111.02]
[1693357597495,111.02,21.652,21.64,111.02]
[1693357599395,111.02,21.655,21.643,111.02]
[1693357601997,111.02,21.658,21.645,111.02]
[1693357602599,111.02,21.658,21.646,13.85]
[1693357603191,11.87,21.657,21.646,13.85]
[1693357615303,11.87,21.653,21.643,13.85]
[1693357617007,111.02,21.654,21.643,13.85]
[1693357617705,11.87,21.657,21.645,111.02]
[1693357622412,111.02,21.658,21.645,111.02]
[1693357622714,111.02,21.661,21.65,13.85]
[1693357623212,11.87,21.66,21.65,13.85]
[1693357632012,111.02,21.663,21.65,124.87]
[1693357634913,111.02,21.663,21.65,161.52743304]
[1693357637323,99.76,21.66,21.653,99.76]
[1693357641719,99.76,21.66,21.655,13.85]
[1693357641917,99.76,21.663,21.656,99.76]
[1693357642119,11.87,21.663,21.657,99.76]
[1693357644115,99.76,21.664,21.658,13.85]
[1693357644320,11.87,21.667,21.66,99.76]
[1693357647524,99.76,21.664,21.658,13.85]
[1693357649931,11.87,21.663,21.657,99.76]
[1693357650518,11.87,21.663,21.659,0.72372986]
[1693357651129,11.87,21.66,21.659,0.72372986]
[1693357651329,11.87,21.661,21.659,0.72372986]
[1693357651532,0.74095417,21.662,21.659,0.72372986]
[1693357655630,111.63,21.661,21.659,0.72372986]
[1693357658930,0.74095417,21.662,21.66,13.85]
[1693357659732,0.74095417,21.662,21.659,0.72372986]
[1693357660342,0.74095417,21.662,21.66,13.85]
[1693357660540,0.74095417,21.662,21.659,0.72372986]
[1693357661238,0.74095417,21.662,21.66,13.85]
[1693357663143,0.74095417,21.662,21.661,99.76]
[1693357671852,11.86,21.661,21.659,0.72372986]
[1693357673554,11.86,21.661,21.655,99.76]
[1693357675955,11.86,21.658,21.652,99.76]
[1693357676758,99.76,21.659,21.652,99.76]
[1693357679956,0.73382579,21.658,21.652,99.76]
[1693357682061,100.49382579,21.658,21.65,150.26743304]
[1693357684559,100.49382579,21.658,21.65,99.76]
[1693357687062,99.76,21.654,21.648,39.10703529]
[1693357687267,99.76,21.654,21.652,0.65607804]
[1693357688462,111.62,21.654,21.647,135.88927053]
[1693357690164,99.76,21.654,21.648,13.85]
[1693357691963,11.86,21.653,21.647,135.88927053]
[1693357694665,111.63,21.654,21.647,135.88927053]
[1693357695255,0.66184109,21.655,21.65,99.76]
[1693357698572,0.66184109,21.655,21.652,0.06]
[1693357703774,11.87,21.654,21.652,0.06]
[1693357703970,0.66184109,21.655,21.648,20.86293898]
[1693357703971,99.76,21.653,21.648,20.86293898]
[1693357704575,99.76,21.653,21.648,0.65413898]
[1693357711979,11.87,21.649,21.648,0.65413898]
[1693357712179,11.87,21.65,21.648,0.65413898]
[1693357717379,11.87,21.65,21.644,99.76]
[1693357717579,11.87,21.645,21.639,13.86]
[1693357718286,11.87,21.642,21.637,20.2464]
[1693357718484,99.76,21.642,21.637,20.2464]
[1693357718881,99.76,21.642,21.635,13.86]
[1693357720582,11.87,21.638,21.631,13.86]
[1693357720782,99.76,21.635,21.627,99.76]
[1693357721989,99.76,21.637,21.629,13.86]
[1693357723487,99.76,21.639,21.631,99.76]
[1693357725582,0.72737601,21.637,21.631,99.76]
[1693357727491,0.72737601,21.637,21.629,13.87]
[1693357727492,99.76,21.636,21.629,13.87]
[1693357729989,99.76,21.636,21.629,50.90512013]